bitfinex/quotes_BTCUSD_20240902
["timestamp","ask_amount","ask_price","bid_price","bid_amount"]
[1725250453958,0.681866,57862.0,57861.0,0.1969703]
[1725250454167,0.73368522,57862.0,57861.0,0.1978701]
[1725250455234,0.681866,57862.0,57861.0,0.1800998]
[1725250455458,0.681866,57862.0,57861.0,0.1978701]
[1725250455658,0.681866,57862.0,57861.0,0.1800998]
[1725250455785,0.681866,57862.0,57861.0,0.1978701]
[1725250456037,0.75961747,57862.0,57861.0,0.1800998]
[1725250456236,0.75961747,57862.0,57861.0,0.1978701]
[1725250456437,0.75961747,57862.0,57861.0,0.1800998]
[1725250456638,0.75961747,57862.0,57861.0,0.1978701]
[1725250456838,0.75961747,57862.0,57861.0,0.1800998]
[1725250457044,0.75961747,57862.0,57861.0,0.1978701]
[1725250457259,0.75961747,57862.0,57861.0,0.1800998]
[1725250459379,0.681866,57862.0,57861.0,0.1800998]
[1725250462054,0.78553463,57862.0,57861.0,0.1800998]
[1725250463329,0.7856197,57862.0,57861.0,0.1800998]
[1725250463566,0.7856214,57862.0,57861.0,0.1800998]
[1725250464430,0.681866,57862.0,57861.0,0.1800998]
[1725250465519,0.81145179,57862.0,57861.0,0.1800998]
[1725250466412,0.681866,57862.0,57861.0,0.1800998]
[1725250469629,0.681866,57862.0,57861.0,0.0794998]
[1725250470035,0.681866,57862.0,57861.0,0.0972701]
[1725250470702,0.681866,57862.0,57861.0,0.0186701]
[1725250470987,0.704866,57862.0,57861.0,0.0186701]
[1725250471180,0.86036895,57862.0,57861.0,0.0186701]
[1725250471398,0.86036895,57862.0,57851.0,0.005]
[1725250471399,0.708166,57862.0,57851.0,0.0801]
[1725250471611,0.12992145,57854.0,57851.0,0.0801]
[1725250471822,0.681866,57853.0,57852.0,0.01633061]
[1725250472070,0.81178745,57853.0,57852.0,0.01633061]
[1725250472307,0.681866,57853.0,57852.0,0.01633061]
[1725250472550,0.70899531,57853.0,57852.0,0.19253061]
[1725250472763,0.81293311,57853.0,57852.0,0.19253061]
[1725250472970,0.70899531,57853.0,57852.0,0.19253061]
[1725250473191,0.58138431,57853.0,57852.0,0.19253061]
[1725250473649,0.58138431,57853.0,57852.0,0.19947463]
[1725250474324,0.65933265,57853.0,57852.0,0.19747463]
[1725250474554,0.20507788,57853.0,57852.0,0.19747463]
[1725250474795,0.12712931,57853.0,57852.0,0.19747463]
[1725250475023,0.64688431,57853.0,57852.0,0.19747463]
[1725250475250,0.64688431,57853.0,57852.0,0.19253061]
[1725250475480,0.75082211,57853.0,57852.0,0.19253061]
[1725250475709,0.64688431,57853.0,57852.0,0.19253061]
[1725250475930,0.75081598,57853.0,57852.0,0.19253061]
[1725250477800,0.64688431,57853.0,57852.0,0.19253061]
[1725250478025,0.64688431,57853.0,57852.0,0.1770998]
[1725250478452,0.64688431,57853.0,57852.0,0.19343041]
[1725250479730,0.72456549,57853.0,57852.0,0.19343041]
[1725250480396,0.8284645,57853.0,57852.0,0.19343041]
[1725250480901,0.75078332,57853.0,57852.0,0.19343041]
[1725250481636,0.64688431,57853.0,57852.0,0.19343041]
[1725250481891,0.77676574,57853.0,57852.0,0.19343041]
[1725250482636,0.64688431,57853.0,57852.0,0.19343041]
[1725250483311,0.77676574,57853.0,57852.0,0.19343041]
[1725250483998,0.64688431,57853.0,57852.0,0.19343041]
[1725250484241,0.77676574,57853.0,57852.0,0.19343041]
[1725250484726,0.64688431,57853.0,57852.0,0.19343041]
[1725250484956,0.77675925,57853.0,57852.0,0.19343041]
[1725250486575,0.23102575,57853.0,57852.0,0.19543041]
[1725250486810,0.27966931,57853.0,57852.0,0.19543041]
[1725250487074,0.27966931,57853.0,57852.0,0.19343041]
[1725250488031,0.27966931,57853.0,57852.0,0.19837443]
[1725250488282,0.27966931,57853.0,57852.0,0.20037443]
[1725250488539,0.35758656,57853.0,57852.0,0.20037443]
[1725250489256,0.35758656,57853.0,57852.0,0.19837443]
[1725250489505,0.35758656,57853.0,57852.0,0.20037443]
[1725250489996,0.27966931,57853.0,57852.0,0.20037443]
[1725250490446,0.12712931,57853.0,57852.0,0.20037443]
[1725250491140,0.17907374,57853.0,57852.0,0.20037443]
[1725250491374,0.12712931,57853.0,57852.0,0.20037443]
[1725250491635,0.27968631,57853.0,57852.0,0.20037443]
[1725250492084,0.27968631,57853.0,57852.0,0.19837443]
[1725250492290,0.27968631,57853.0,57852.0,0.20037443]
[1725250492489,0.12712931,57853.0,57852.0,0.20037443]
[1725250492708,0.17907617,57853.0,57852.0,0.19837443]
[1725250492918,0.07907617,57853.0,57852.0,0.20037443]
[1725250493626,0.02712931,57853.0,57852.0,0.20037443]
[1725250493851,0.07907774,57853.0,57852.0,0.20037443]
[1725250494508,0.07907763,57853.0,57852.0,0.20037443]
[1725250495486,0.02712931,57853.0,57852.0,0.20037443]
[1725250496184,0.1,57855.0,57854.0,0.01694402]
[1725250496185,0.05194832,57855.0,57854.0,0.01694402]
[1725250496423,0.05194832,57861.0,57860.0,0.19234402]
[1725250496653,0.0271262,57864.0,57861.0,0.19234402]
[1725250496908,0.000818,57867.0,57861.0,0.19580012]
[1725250497148,0.000818,57867.0,57861.0,0.2126706]
[1725250498296,0.02712096,57864.0,57861.0,0.2126706]
[1725250499159,0.000818,57867.0,57861.0,0.2126706]
[1725250499160,0.000818,57867.0,57861.0,0.2092145]
[1725250500499,0.000818,57867.0,57861.0,0.21267045]
[1725250500937,0.02712092,57864.0,57861.0,0.21267045]
[1725250501614,0.02712092,57864.0,57863.0,0.01694402]
[1725250502088,0.02712092,57864.0,57863.0,0.55082478]
[1725250502090,0.02712092,57864.0,57863.0,0.56768612]
[1725250502336,0.000818,57867.0,57866.0,0.18444402]
[1725250502602,0.000818,57867.0,57866.0,0.62242222]
[1725250502833,0.02711867,57871.0,57870.0,0.012]
[1725250503065,0.02711867,57871.0,57870.0,0.18295554]
[1725250503297,0.02711867,57871.0,57870.0,0.20472889]
[1725250503757,0.14807667,57871.0,57870.0,0.20472889]
[1725250504031,0.63191067,57871.0,57870.0,0.23951985]
[1725250504287,0.73191067,57871.0,57870.0,0.20127335]
[1725250504505,0.48999367,57871.0,57870.0,0.20127335]
[1725250504964,0.462875,57871.0,57870.0,0.18444402]
[1725250505193,0.462875,57871.0,57870.0,0.19927335]
[1725250505444,0.860115,57871.0,57870.0,0.01682933]
[1725250505705,0.860115,57871.0,57870.0,0.02177335]
[1725250505931,1.102032,57871.0,57870.0,0.01694402]
[1725250506607,0.825751,57871.0,57870.0,0.03540842]
[1725250506829,1.182721,57871.0,57870.0,0.03540842]
[1725250507931,0.846751,57868.0,57867.0,0.09034402]
[1725250508148,1.18868,57868.0,57867.0,0.09034402]
[1725250508407,1.770546,57868.0,57867.0,0.00494402]
[1725250508642,1.79766666,57868.0,57867.0,0.00494402]
[1725250508879,1.79766666,57868.0,57865.0,0.0982]
[1725250508880,0.846783,57866.0,57865.0,0.0982]
[1725250509115,0.604855,57865.0,57864.0,0.0804]
[1725250509355,0.362925,57863.0,57862.0,0.01494402]
[1725250509576,0.792375,57863.0,57862.0,0.01494402]
[1725250509801,0.892375,57863.0,57862.0,0.01494402]
[1725250510472,1.134325,57863.0,57862.0,0.01494402]
[1725250512311,1.134325,57863.0,57862.0,0.01694402]
[1725250512532,0.946825,57863.0,57862.0,0.01694402]
[1725250512748,0.946825,57863.0,57862.0,0.09554402]
[1725250512957,0.946825,57863.0,57862.0,0.19044402]
[1725250513402,0.946825,57863.0,57862.0,0.20730993]
[1725250514518,0.704875,57863.0,57862.0,0.20730993]
[1725250514793,0.73199702,57863.0,57862.0,0.2281309]
[1725250515021,0.73199702,57863.0,57862.0,0.21126499]
[1725250515249,0.73199702,57863.0,57862.0,0.2281309]
[1725250516222,0.604885,57862.0,57861.0,0.0008998]
[1725250516446,0.604885,57862.0,57853.0,0.0757]
[1725250516447,0.362982,57854.0,57853.0,0.0757]
[1725250516663,0.70497,57854.0,57853.0,0.0757]
[1725250517406,0.95177721,57854.0,57853.0,0.0757]
[1725250517629,1.19376521,57854.0,57853.0,0.0757]
[1725250518345,0.95177721,57854.0,57853.0,0.0757]
[1725250518574,1.19376521,57854.0,57853.0,0.0757]
[1725250520418,1.43575321,57854.0,57853.0,0.0757]
[1725250520653,0.846972,57853.0,57852.0,0.0008998]
[1725250520872,1.528838,57853.0,57852.0,0.0008998]
[1725250521151,1.77083,57853.0,57852.0,0.0008998]
[1725250522600,2.012822,57853.0,57852.0,0.0008998]
[1725250522847,2.016122,57853.0,57852.0,0.0008998]
[1725250524325,2.025522,57853.0,57852.0,0.0008998]
[1725250525532,1.443656,57853.0,57852.0,0.0008998]
[1725250525778,2.025522,57853.0,57852.0,0.0008998]
[1725250526017,2.19407364,57853.0,57852.0,0.0008998]
[1725250526524,2.2458206,57853.0,57852.0,0.0008998]
[1725250527001,2.20546449,57853.0,57852.0,0.0008998]
[1725250527239,2.03691285,57853.0,57852.0,0.0008998]
[1725250528028,2.08865981,57853.0,57852.0,0.0008998]
[1725250529401,2.08535981,57853.0,57852.0,0.0008998]
[1725250529633,2.03361285,57853.0,57852.0,0.0008998]
[1725250532820,1.75922085,57853.0,57852.0,0.0008998]
[1725250535652,1.44866485,57853.0,57852.0,0.1724998]
[1725250535870,1.44866485,57853.0,57852.0,0.0008998]
[1725250538270,1.44866485,57853.0,57852.0,0.0018998]
[1725250538740,1.59808386,57853.0,57852.0,0.0018998]
[1725250538957,1.44866485,57853.0,57852.0,0.0018998]
[1725250540033,1.44948285,57853.0,57852.0,0.0018998]
[1725250541751,1.44948285,57853.0,57852.0,0.0008998]
[1725250541962,1.45348285,57853.0,57852.0,0.0008998]
[1725250542195,1.44948285,57853.0,57852.0,0.0008998]
[1725250542674,1.45348285,57853.0,57852.0,0.0008998]
[1725250547543,1.76403885,57853.0,57852.0,0.0008998]
[1725250548014,1.74709077,57853.0,57852.0,0.0008998]
[1725250552110,1.77009077,57853.0,57852.0,0.0008998]
[1725250552514,1.74709077,57853.0,57852.0,0.0008998]
[1725250553409,1.74709077,57853.0,57852.0,0.0765998]
[1725250554000,1.74709077,57853.0,57852.0,0.1777998]
[1725250556622,1.7988959,57853.0,57852.0,0.1777998]
[1725250557054,1.654652,57853.0,57852.0,0.1777998]
[1725250557280,1.775648,57853.0,57852.0,0.1777998]
[1725250557963,1.82745313,57853.0,57852.0,0.1777998]
[1725250558602,1.775648,57853.0,57852.0,0.1777998]
[1725250561623,0.94252097,57853.0,57852.0,0.1777998]
[1725250561860,0.367806,57853.0,57852.0,0.19656956]
[1725250562115,1.191664,57853.0,57852.0,0.1777998]
[1725250562347,1.433656,57853.0,57852.0,0.18838196]
[1725250562572,1.433656,57853.0,57852.0,0.1777998]
[1725250562815,1.429656,57853.0,57852.0,0.1777998]
[1725250563068,1.529656,57853.0,57852.0,0.1777998]
[1725250563734,1.530656,57853.0,57852.0,0.1907998]
[1725250565483,1.529656,57853.0,57852.0,0.1777998]
[1725250566147,1.530656,57853.0,57852.0,0.1897998]
[1725250566363,1.529656,57853.0,57852.0,0.1777998]
[1725250566823,1.530656,57853.0,57852.0,0.1897998]
[1725250571192,1.449054,57853.0,57852.0,0.1897998]
[1725250571401,0.94879,57853.0,57852.0,0.1897998]
[1725250571583,1.136294,57853.0,57852.0,0.1897998]
[1725250572623,0.94879,57853.0,57852.0,0.1897998]
[1725250573677,1.190782,57853.0,57852.0,0.1897998]
[1725250573898,1.633021,57853.0,57852.0,0.0128998]
[1725250574569,1.875013,57853.0,57852.0,0.0128998]
[1725250574791,1.633021,57853.0,57852.0,0.0128998]
[1725250575001,1.874013,57853.0,57852.0,0.0008998]
[1725250575419,1.633021,57853.0,57852.0,0.0118998]
[1725250576424,1.875013,57853.0,57852.0,0.0118998]
[1725250577838,2.04356464,57853.0,57852.0,0.0118998]
[1725250578062,2.06656464,57853.0,57852.0,0.0118998]
[1725250579234,2.06556464,57853.0,57852.0,0.0008998]
[1725250579446,2.06956464,57853.0,57852.0,0.0008998]
[1725250580172,1.089004,57851.0,57850.0,0.0008998]
[1725250580407,1.77087,57851.0,57850.0,0.0008998]
[1725250581085,2.04000536,57851.0,57850.0,0.0008998]
[1725250581836,1.16330236,57851.0,57850.0,0.1808998]
[1725250582094,0.68503274,57851.0,57850.0,0.1808998]
[1725250582351,0.63313636,57851.0,57850.0,0.19361197]
[1725250583042,0.63213636,57851.0,57850.0,0.19361197]
[1725250583572,0.63213636,57851.0,57850.0,0.19861197]
[1725250583794,0.73213636,57851.0,57850.0,0.19861197]
[1725250584543,0.73213636,57851.0,57850.0,0.22151607]
[1725250584768,0.49013536,57851.0,57850.0,0.22151607]
[1725250584989,0.463001,57851.0,57850.0,0.22151607]
[1725250585200,0.49012943,57851.0,57850.0,0.22151607]
[1725250585424,0.49012943,57851.0,57850.0,0.19861197]
[1725250585649,0.49012943,57851.0,57850.0,0.19361197]
[1725250586150,0.12712843,57851.0,57850.0,0.19861197]
[1725250586387,0.02712843,57851.0,57850.0,0.19361197]
[1725250586611,0.02812843,57851.0,57850.0,0.20361197]
[1725250586851,0.02812843,57851.0,57850.0,0.23911674]
[1725250587089,0.14912843,57851.0,57850.0,0.23911674]
[1725250587309,0.24912843,57851.0,57850.0,0.20361197]
[1725250587803,0.12812843,57851.0,57850.0,0.20361197]
[1725250588024,0.120999,57852.0,57851.0,0.175]
[1725250588522,0.120999,57852.0,57851.0,0.18770907]
[1725250589138,0.120999,57852.0,57851.0,0.20170907]
[1725250589381,0.121999,57852.0,57851.0,0.20170907]
[1725250589977,0.221999,57852.0,57851.0,0.20170907]
[1725250590384,0.221999,57852.0,57851.0,0.23621484]
[1725250591013,0.101,57852.0,57851.0,0.23621484]
[1725250591411,0.101,57852.0,57851.0,0.20170907]
[1725250592257,0.001,57852.0,57851.0,0.32270907]
[1725250592488,0.001,57852.0,57851.0,0.3261656]
[1725250593647,0.001,57852.0,57851.0,0.5681666]
[1725250593870,0.001,57852.0,57851.0,0.65177214]
[1725250595266,0.001,57852.0,57851.0,0.89031661]
[1725250596021,0.001,57852.0,57851.0,0.20170907]
[1725250597521,0.121998,57852.0,57851.0,0.20170907]
[1725250597950,0.121998,57852.0,57851.0,0.20260887]
[1725250598081,0.364812,57852.0,57851.0,0.20260887]
[1725250599805,0.001818,57852.0,57851.0,0.20260887]
[1725250600032,0.001818,57852.0,57851.0,0.23720452]
[1725250600461,0.001818,57852.0,57851.0,0.60520552]
[1725250600675,0.001818,57852.0,57851.0,0.84720652]
[1725250601118,0.1,57861.0,57855.0,0.241981]
[1725250601328,0.221795,57863.0,57859.0,0.120983]
[1725250601543,0.221795,57863.0,57862.0,0.0673]
[1725250601753,0.221795,57863.0,57862.0,0.1657]
[1725250602176,0.221795,57863.0,57862.0,0.17837501]
[1725250602416,0.221795,57863.0,57862.0,0.17737501]
[1725250603783,0.705695,57863.0,57862.0,0.17737501]
[1725250604024,0.43592629,57863.0,57862.0,0.19137501]
[1725250604236,0.55690229,57863.0,57862.0,0.19137501]
[1725250606168,0.65690229,57863.0,57862.0,0.19137501]
[1725250606397,0.65690229,57863.0,57862.0,0.1787]
[1725250608108,0.41495229,57863.0,57862.0,0.19657]
[1725250608551,0.000818,57867.0,57866.0,0.120969]
[1725250608757,0.000818,57867.0,57866.0,0.285669]
[1725250608993,0.000818,57867.0,57866.0,0.3318986]
[1725250609626,0.000818,57867.0,57866.0,0.17736263]
[1725250610055,0.000818,57867.0,57866.0,0.18736263]
[1725250610963,0.000818,57867.0,57866.0,0.31178741]
[1725250611206,0.000818,57867.0,57866.0,0.55026963]
[1725250612103,0.000818,57867.0,57866.0,0.78220763]
[1725250612341,0.000818,57867.0,57866.0,0.86300537]
[1725250612558,0.000818,57867.0,57866.0,0.87700537]
[1725250613667,0.000818,57867.0,57866.0,0.63506737]
[1725250613896,0.000818,57867.0,57866.0,0.19136263]
[1725250618529,0.000818,57867.0,57866.0,0.31233163]
[1725250619174,0.000818,57867.0,57866.0,0.55426963]
[1725250620909,0.000818,57867.0,57866.0,0.55626963]
[1725250621611,0.000818,57867.0,57866.0,0.55426963]
[1725250621881,0.000818,57867.0,57866.0,0.65867557]
[1725250622316,0.000818,57867.0,57866.0,0.66067557]
[1725250622733,0.000818,57867.0,57866.0,0.65867557]
[1725250624001,0.000818,57867.0,57866.0,1.14755157]
[1725250624435,0.000818,57867.0,57866.0,0.90061357]
[1725250626925,0.000818,57867.0,57866.0,0.90761357]
[1725250628037,0.000818,57867.0,57866.0,0.90261357]
[1725250629289,0.000818,57867.0,57866.0,0.88861357]
[1725250629534,0.000818,57867.0,57866.0,0.89361357]
[1725250629774,0.000818,57867.0,57866.0,0.65867557]
[1725250629999,0.000818,57867.0,57866.0,0.17736263]
[1725250630222,0.000818,57867.0,57866.0,0.19136263]
[1725250633181,0.121785,57867.0,57866.0,0.19136263]
[1725250633404,0.000818,57867.0,57866.0,0.19136263]
[1725250633645,0.605653,57867.0,57866.0,0.02666263]
[1725250634068,0.605653,57867.0,57866.0,0.014]
[1725250634917,0.120973,57864.0,57863.0,0.0008998]
[1725250635345,0.120973,57864.0,57863.0,0.01357172]
[1725250635807,0.362919,57864.0,57863.0,0.01357172]
[1725250636028,0.362919,57864.0,57863.0,0.03118887]
[1725250636248,0.604865,57864.0,57863.0,0.01357172]
[1725250636689,0.704865,57864.0,57863.0,0.02757172]
[1725250636895,0.704865,57864.0,57863.0,0.0008998]
[1725250638896,0.704865,57864.0,57863.0,0.0148998]
[1725250641029,0.946811,57864.0,57863.0,0.0148998]
[1725250641270,0.91538137,57864.0,57863.0,0.0148998]
[1725250641499,1.15732737,57864.0,57863.0,0.0148998]
[1725250642488,0.92366737,57864.0,57863.0,0.0148998]
[1725250642737,0.68172137,57864.0,57863.0,0.1771998]
[1725250642992,0.68172137,57864.0,57863.0,0.19500976]
[1725250643233,0.68172137,57864.0,57863.0,0.20768168]
[1725250643483,0.1,57864.0,57863.0,0.20768168]
[1725250643736,0.120972,57865.0,57863.0,0.20768168]
[1725250643997,0.02712286,57866.0,57864.0,0.03295625]
[1725250644257,0.100818,57867.0,57864.0,0.04908102]
[1725250644493,0.100818,57867.0,57865.0,0.0729]
[1725250644763,0.100818,57867.0,57866.0,0.01266263]
[1725250644997,0.000818,57867.0,57866.0,0.04867267]
[1725250645475,0.000818,57867.0,57866.0,0.20507267]
[1725250646190,0.02793693,57867.0,57866.0,0.32604167]
[1725250646438,0.02793693,57867.0,57866.0,0.18306263]
[1725250646681,0.02793693,57867.0,57866.0,0.30403163]
[1725250646921,0.000818,57867.0,57866.0,0.30403163]
[1725250647600,0.000818,57867.0,57866.0,0.18306263]
[1725250648271,0.11335057,57867.0,57866.0,0.02666263]
[1725250648500,0.35528457,57867.0,57866.0,0.02666263]
[1725250648729,0.45528457,57867.0,57866.0,0.04514885]
[1725250648944,0.48240545,57867.0,57866.0,0.04514885]
[1725250649157,0.48240545,57867.0,57866.0,0.03248622]
[1725250649819,0.72433945,57867.0,57866.0,0.03248622]
[1725250650053,0.72433945,57867.0,57866.0,0.014]
[1725250658591,0.72433945,57867.0,57866.0,0.0148998]
[1725250658865,0.72515745,57867.0,57866.0,0.0148998]
[1725250661394,0.96709145,57867.0,57866.0,0.0148998]
[1725250662271,0.96709145,57867.0,57866.0,0.0886998]
[1725250662740,0.96709145,57867.0,57866.0,0.0148998]
[1725250663803,0.72515745,57867.0,57866.0,0.0148998]
[1725250664032,0.72515745,57867.0,57866.0,0.1760998]
[1725250664233,0.72515745,57867.0,57866.0,0.19423536]
[1725250664672,0.72515745,57867.0,57866.0,0.20689799]
[1725250665998,0.72515745,57867.0,57866.0,0.18876243]
[1725250666473,0.72515745,57867.0,57866.0,0.1760998]
[1725250668995,0.12793888,57867.0,57866.0,0.1760998]
[1725250669219,0.02793888,57867.0,57866.0,0.18876243]
[1725250669422,0.02793888,57867.0,57866.0,0.21991603]
[1725250674040,0.12793888,57867.0,57866.0,0.21991603]
[1725250674317,0.24890588,57867.0,57866.0,0.21991603]
[1725250674513,0.24890588,57867.0,57866.0,0.18876243]
[1725250675558,0.12793888,57867.0,57866.0,0.18876243]
[1725250676392,0.24890588,57867.0,57866.0,0.18876243]
[1725250677407,0.49083988,57867.0,57866.0,0.18876243]
[1725250678260,0.73277388,57867.0,57866.0,0.18876243]
[1725250678493,0.97470788,57867.0,57866.0,0.02756243]
[1725250678719,0.97470788,57867.0,57866.0,0.0148998]
[1725250680558,1.38490278,57867.0,57866.0,0.0148998]
[1725250680794,1.96676878,57867.0,57866.0,0.0148998]
[1725250681018,2.09652163,57867.0,57866.0,0.0148998]
[1725250681244,1.96676878,57867.0,57866.0,0.0148998]
[1725250681668,1.96676878,57867.0,57866.0,0.0008998]
[1725250681905,1.86410788,57867.0,57866.0,0.0008998]
[1725250683212,1.836987,57867.0,57866.0,0.0008998]
[1725250683418,1.96679762,57867.0,57866.0,0.0008998]
[1725250683624,1.96679762,57867.0,57866.0,0.0078998]
[1725250684270,1.96679762,57867.0,57866.0,0.0008998]
[1725250684697,1.96679762,57867.0,57866.0,0.0028998]
[1725250686194,1.836987,57867.0,57866.0,0.0028998]
[1725250686441,1.21739078,57867.0,57866.0,0.0028998]
[1725250686702,1.16548779,57867.0,57866.0,0.0028998]
[1725250686975,0.19963179,57867.0,57866.0,0.0877998]
[1725250687207,0.000818,57867.0,57866.0,0.18489802]
[1725250687433,0.000818,57867.0,57866.0,0.18635389]
[1725250687906,0.000818,57867.0,57866.0,0.30386702]
[1725250688134,0.000818,57867.0,57866.0,0.18689802]
[1725250688553,0.121785,57867.0,57866.0,0.18289802]
[1725250688760,0.000818,57867.0,57866.0,0.17776243]
[1725250688978,0.001818,57867.0,57866.0,0.17776243]
[1725250689194,0.000818,57867.0,57866.0,0.16676243]
[1725250690299,0.363719,57867.0,57866.0,0.16676243]
[1725250690525,0.363719,57867.0,57866.0,0.17876243]
[1725250690817,0.39083937,57867.0,57866.0,0.17876243]
[1725250692396,0.63277337,57867.0,57866.0,0.17876243]
[1725250693065,0.51098837,57867.0,57866.0,0.19681863]
[1725250693536,0.63195537,57867.0,57866.0,0.19681863]
[1725250694201,0.63195537,57867.0,57866.0,0.17876243]
[1725250695739,0.63277337,57867.0,57866.0,0.17876243]
[1725250696576,0.63277337,57867.0,57866.0,0.11046243]
[1725250697005,0.63277337,57867.0,57866.0,0.0977998]
[1725250698101,0.73277337,57867.0,57866.0,0.0977998]
[1725250699976,0.97470737,57867.0,57866.0,0.0128998]
[1725250700209,1.55657337,57867.0,57866.0,0.0128998]
[1725250700644,1.55657337,57867.0,57866.0,0.0188998]
[1725250703546,0.97470737,57867.0,57866.0,0.1736998]
[1725250703793,0.24890537,57867.0,57866.0,0.1736998]
[1725250704016,0.49083937,57867.0,57866.0,0.1736998]
[1725250704243,0.14890537,57867.0,57866.0,0.20391237]
[1725250705404,0.24890537,57867.0,57866.0,0.20391237]
[1725250705819,0.12793837,57867.0,57866.0,0.20391237]
[1725250706026,0.12793837,57867.0,57866.0,0.19124974]
[1725250706235,0.12793837,57867.0,57866.0,0.20391237]
[1725250708600,0.12793837,57867.0,57866.0,0.18636243]
[1725250709028,0.24890537,57867.0,57866.0,0.18636243]
[1725250714247,0.12793837,57867.0,57866.0,0.18636243]
[1725250720535,0.24890537,57867.0,57866.0,0.18636243]
[1725250724224,0.24890537,57867.0,57866.0,0.18036243]
[1725250724731,0.24890537,57867.0,57866.0,0.17936243]
[1725250724973,0.241927,57869.0,57866.0,0.20957633]
[1725250725256,0.241927,57869.0,57866.0,0.22357633]
[1725250725440,0.120967,57867.0,57866.0,0.22357633]
[1725250726316,0.120967,57867.0,57866.0,0.20957633]
[1725250726792,0.120967,57867.0,57866.0,0.22357633]
[1725250727032,0.120967,57867.0,57866.0,0.19857633]
[1725250727264,0.120964,57869.0,57866.0,0.22157633]
[1725250727515,0.1,57868.0,57867.0,0.03434491]
[1725250727810,0.120954,57873.0,57869.0,0.1538]
[1725250728005,0.120954,57873.0,57871.0,0.0709]
[1725250728245,0.120954,57873.0,57872.0,0.11072177]
[1725250728486,0.462863,57873.0,57872.0,0.12336583]
[1725250729377,0.220954,57873.0,57872.0,0.12336583]
[1725250730567,0.220954,57873.0,57872.0,0.13736583]
[1725250730784,0.1,57873.0,57872.0,0.13736583]
[1725250730991,0.220954,57873.0,57872.0,0.13736583]
[1725250731228,0.100818,57873.0,57872.0,0.13736583]
[1725250731437,0.000818,57873.0,57872.0,0.13736583]
[1725250732810,0.000818,57873.0,57872.0,0.12736583]
[1725250733246,0.000818,57873.0,57872.0,0.13736583]
[1725250733452,0.000818,57873.0,57872.0,0.27132183]
[1725250734097,0.000818,57873.0,57872.0,0.25832183]
[1725250734339,0.000818,57873.0,57872.0,0.27577731]
[1725250737197,0.000818,57873.0,57872.0,0.51769031]
[1725250738358,0.000818,57873.0,57872.0,0.51423483]
[1725250739682,0.000818,57873.0,57872.0,0.82364783]
[1725250742687,0.121772,57873.0,57872.0,0.04064406]
[1725250742965,0.70559,57873.0,57872.0,0.04064406]
[1725250743434,0.70559,57873.0,57872.0,0.028]
[1725250744134,0.947499,57873.0,57872.0,0.028]
[1725250752722,0.725727,57873.0,57872.0,0.028]
[1725250753442,0.846681,57873.0,57872.0,0.028]
[1725250754720,0.946681,57873.0,57872.0,0.028]
[1725250755563,0.947499,57873.0,57872.0,0.028]
[1725250757962,0.947499,57873.0,57872.0,0.1075]
[1725250758185,0.947499,57873.0,57872.0,0.028]
[1725250763171,0.463681,57873.0,57872.0,0.1798]
[1725250763392,0.100818,57873.0,57872.0,0.1798]
[1725250763609,0.000818,57873.0,57872.0,0.19605665]
[1725250763863,0.100818,57873.0,57872.0,0.22775852]
[1725250768975,0.221772,57873.0,57872.0,0.22775852]
[1725250769423,0.100818,57873.0,57872.0,0.22775852]
[1725250770925,0.000818,57873.0,57872.0,0.22775852]
[1725250772803,0.000818,57873.0,57872.0,0.19605665]
[1725250773017,0.100818,57873.0,57872.0,0.19605665]
[1725250773225,0.221772,57873.0,57872.0,0.19605665]
[1725250773657,0.463681,57873.0,57872.0,0.19605665]
[1725250778658,0.463681,57873.0,57872.0,0.19695645]
[1725250780231,0.463681,57873.0,57872.0,0.2166521]
[1725250780666,0.221772,57873.0,57872.0,0.2166521]
[1725250784888,0.100818,57873.0,57872.0,0.2166521]
[1725250785163,0.121772,57873.0,57872.0,0.2166521]
[1725250785381,0.221772,57873.0,57872.0,0.2166521]
[1725250785739,0.100818,57873.0,57872.0,0.2166521]
[1725250791384,0.000818,57873.0,57872.0,0.2166521]
[1725250791590,0.100818,57873.0,57872.0,0.19695645]
[1725250792011,0.221772,57873.0,57872.0,0.19695645]
[1725250795683,0.463681,57873.0,57872.0,0.19695645]
[1725250798915,0.70559,57873.0,57872.0,0.04515645]
[1725250799135,1.478767,57873.0,57872.0,0.04515645]
[1725250799367,1.6327937,57873.0,57872.0,0.04515645]
[1725250799582,1.74620215,57873.0,57872.0,0.0288998]
[1725250799805,1.59217545,57873.0,57872.0,0.0288998]
[1725250800052,1.59218487,57873.0,57872.0,0.0288998]
[1725250800523,1.47290787,57873.0,57872.0,0.0288998]
[1725250800743,1.17258987,57873.0,57872.0,0.0288998]
[1725250800968,1.120672,57873.0,57872.0,0.0288998]
[1725250802974,1.28209662,57873.0,57872.0,0.0288998]
[1725250803191,1.23018,57873.0,57872.0,0.0288998]
[1725250803463,0.99941552,57873.0,57872.0,0.1187998]
[1725250803696,0.75750652,57873.0,57872.0,0.13749978]
[1725250803920,0.70559,57873.0,57872.0,0.13749978]
[1725250804555,0.70559,57873.0,57872.0,0.20789978]
[1725250804556,0.463681,57873.0,57872.0,0.20789978]
[1725250804759,0.463681,57873.0,57872.0,0.20545645]
[1725250807701,1.008999,57873.0,57872.0,0.04515645]
[1725250807911,1.65593344,57873.0,57872.0,0.04515645]
[1725250808120,1.54914229,57873.0,57872.0,0.0288998]
[1725250808338,1.474332,57873.0,57872.0,0.0288998]
[1725250808571,1.250908,57873.0,57872.0,0.0288998]
[1725250808776,1.832774,57873.0,57872.0,0.0288998]
[1725250809602,1.832774,57873.0,57872.0,0.0148998]
[1725250809808,1.832774,57873.0,57872.0,0.0008998]
[1725250810015,1.832774,57873.0,57872.0,0.0108998]
[1725250810217,1.832774,57873.0,57872.0,0.0248998]
[1725250811448,1.9624712,57873.0,57872.0,0.0248998]
[1725250811656,1.832774,57873.0,57872.0,0.0248998]
[1725250812242,1.8413877,57873.0,57872.0,0.0248998]
[1725250812456,1.737659,57873.0,57872.0,0.0248998]
[1725250814341,1.81543253,57873.0,57872.0,0.0248998]
[1725250814769,1.128053,57873.0,57872.0,0.0248998]
[1725250814980,0.99934166,57873.0,57872.0,0.0248998]
[1725250815212,0.947499,57873.0,57872.0,0.0248998]
[1725250816803,1.266753,57873.0,57872.0,0.0248998]
[1725250818448,1.128309,57873.0,57872.0,0.0248998]
[1725250818851,0.947499,57873.0,57872.0,0.0248998]
[1725250819517,0.947499,57873.0,57872.0,0.04299978]
[1725250820161,0.947499,57873.0,57872.0,0.0248998]
[1725250820418,0.70559,57873.0,57872.0,0.0248998]
[1725250820636,0.363681,57873.0,57872.0,0.1839998]
[1725250820851,0.60559,57873.0,57872.0,0.1839998]